bitfinex-derivatives/quotes_BNBF0:USTF0_20250603
["timestamp","ask_amount","ask_price","bid_price","bid_amount"]
[1748987589226,1.01926483,658.87,658.36,0.30378516]
[1748987589433,1.01926483,658.86,658.36,0.30378516]
[1748987589632,1.01926483,658.85,658.36,0.78697146]
[1748987589832,1.01926483,658.84,658.36,0.78697146]
[1748987590032,1.01926483,658.83,658.37,0.4831863]
[1748987590229,1.01926483,658.82,658.38,0.30377593]
[1748987590428,1.01926483,658.81,658.38,0.30377593]
[1748987590632,1.01926483,658.8,658.38,0.30377593]
[1748987590934,1.01926483,658.79,658.38,0.30377593]
[1748987591129,1.01926483,658.78,658.38,0.30377593]
[1748987591333,1.01926483,658.77,658.38,0.30377593]
[1748987591632,1.01926483,658.76,658.38,0.30377593]
[1748987591835,1.01926483,658.75,658.38,0.30377593]
[1748987592029,1.01926483,658.74,658.38,0.30377593]
[1748987592232,1.01926483,658.73,658.38,0.30377593]
[1748987592432,1.50262131,659.02,658.38,0.30377593]
[1748987592628,1.12470573,658.91,658.38,0.30377593]
[1748987592833,1.01910525,658.9,658.38,0.78696223]
[1748987593030,1.01910525,658.89,658.38,0.78696223]
[1748987593231,1.01910525,658.88,658.38,0.78696223]
[1748987593434,1.01910525,658.87,658.38,0.78696223]
[1748987593634,1.01910525,658.86,658.38,0.78696223]
[1748987593831,1.01910525,658.85,658.38,0.78696223]
[1748987594038,1.01910525,658.84,658.38,0.30377593]
[1748987594238,1.01910525,658.83,658.38,0.78696223]
[1748987594438,1.01910525,658.82,658.38,0.78696223]
[1748987594739,1.01910525,658.81,658.4,0.4831863]
[1748987595039,1.01910525,658.8,658.41,0.30376209]
[1748987595244,1.01910525,658.79,658.41,0.78694839]
[1748987595444,1.01910525,658.78,658.41,0.78694839]
[1748987595644,1.01910525,658.77,658.41,0.78694839]
[1748987595845,1.01910525,658.76,658.42,0.4831863]
[1748987596045,1.01910525,658.75,658.43,0.30375286]
[1748987596245,1.01910525,658.74,658.43,0.78693916]
[1748987596547,1.01902927,658.73,658.43,0.78693916]
[1748987596746,1.12456093,658.93,658.43,0.78693916]
[1748987597040,1.01903735,658.92,658.43,0.78693916]
[1748987597240,1.01903735,658.91,658.43,0.78693916]
[1748987597446,1.01903735,658.9,658.45,0.4831863]
[1748987597646,1.01903735,658.89,658.46,0.30373902]
[1748987597847,1.01903735,658.88,658.46,0.30373902]
[1748987598047,1.01903735,658.87,658.46,0.30373902]
[1748987598347,1.12456093,658.92,658.46,0.78692532]
[1748987598348,1.01903735,658.86,658.46,0.78692532]
[1748987598547,1.01903735,658.85,658.46,0.78692532]
[1748987598743,1.01903735,658.84,658.46,0.78692532]
[1748987598947,1.01903735,658.83,658.46,0.78692532]
[1748987599150,1.01903735,658.82,658.46,0.78692532]
[1748987599450,1.01903735,658.81,658.48,0.4831863]
[1748987599646,1.01903735,658.8,658.49,0.78691148]
[1748987599842,1.01903735,658.79,658.5,0.78690687]
[1748987600047,1.01903735,658.78,658.51,0.30371596]
[1748987600247,1.01903735,658.77,658.51,0.30371596]
[1748987600444,1.01903735,658.76,658.51,0.30371596]
[1748987600648,1.12456093,658.96,658.51,0.30371596]
[1748987600845,1.01885061,658.95,658.51,0.30371596]
[1748987601048,1.01885061,658.94,658.51,0.30371596]
[1748987601250,3.75130409,659.63,658.51,0.30371596]
[1748987601251,1.01885061,658.93,658.51,0.30371596]
[1748987601447,1.01885061,658.92,658.51,0.30371596]
[1748987601649,1.01885061,658.91,658.51,0.30371596]
[1748987601952,1.01885061,658.9,658.51,0.30371596]
[1748987602146,1.01885061,658.89,658.51,0.30371596]
[1748987602353,1.01885061,658.88,658.51,0.30371596]
[1748987602552,1.01885061,658.87,658.51,0.30371596]
[1748987602752,1.12456093,659.04,658.51,0.30371596]
[1748987602753,1.01885061,658.86,658.51,0.30371596]
[1748987602946,1.01885061,658.85,658.51,0.30371596]
[1748987603147,1.0188877,658.84,658.51,0.30371596]
[1748987603352,1.0188877,658.83,658.51,0.30371596]
[1748987603655,1.0188877,658.82,658.51,0.30371596]
[1748987603954,1.12453027,659.08,658.51,0.30371596]
[1748987604154,1.018984,659.07,658.51,0.30371596]
[1748987604353,1.018984,659.06,658.51,0.30371596]
[1748987604554,1.018984,659.05,658.51,0.30371596]
[1748987604748,1.12453027,659.08,658.51,0.30371596]
[1748987604749,1.018984,659.04,658.51,0.30371596]
[1748987604948,1.018984,659.03,658.51,0.30371596]
[1748987605149,1.018984,659.02,658.51,0.30371596]
[1748987605353,1.018984,659.01,658.51,0.30371596]
[1748987605550,1.12453027,659.08,658.51,0.30371596]
[1748987605551,1.018984,659.0,658.51,0.30371596]
[1748987605750,1.018984,658.99,658.51,0.30371596]
[1748987606049,1.018984,658.98,658.51,0.30371596]
[1748987606253,1.018984,658.97,658.51,0.30371596]
[1748987606450,1.018984,658.96,658.51,0.30371596]
[1748987606650,1.018984,658.95,658.51,0.30371596]
[1748987606850,1.018984,658.94,658.51,0.30371596]
[1748987607051,1.018984,658.93,658.51,0.30371596]
[1748987607257,1.018984,658.92,658.51,0.30371596]
[1748987607455,1.018984,658.91,658.51,0.30371596]
[1748987607657,1.01710928,658.9,658.51,0.30371596]
[1748987607853,1.01710928,658.89,658.51,0.30371596]
[1748987608056,1.01710928,658.88,658.51,0.30371596]
[1748987608357,1.01710928,658.87,658.51,0.30371596]
[1748987608556,1.12423133,659.1,658.51,0.30371596]
[1748987608757,1.01704133,659.09,658.51,0.30371596]
[1748987609056,1.01704133,659.08,658.51,0.30371596]
[1748987609256,1.01704133,659.07,658.51,0.30371596]
[1748987609455,1.01704133,659.06,658.51,0.30371596]
[1748987609650,1.01704133,659.05,658.51,0.30371596]
[1748987609855,1.01704133,659.04,658.51,0.30371596]
[1748987610052,1.01704133,659.03,658.51,0.30371596]
[1748987610257,1.01704133,659.02,658.51,0.30371596]
[1748987610457,1.01704133,659.01,658.51,0.30371596]
[1748987610656,1.01704133,659.0,658.51,0.30371596]
[1748987610853,1.01704133,658.99,658.51,0.30371596]
[1748987611063,1.01704133,658.98,658.51,0.30371596]
[1748987611253,1.01704133,658.97,658.51,0.30371596]
[1748987611458,1.01704133,658.96,658.51,0.30371596]
[1748987611652,1.01704133,658.95,658.51,0.30371596]
[1748987611855,1.01704133,658.94,658.51,0.30371596]
[1748987612056,1.01744894,658.93,658.51,0.30371596]
[1748987612258,1.01744894,658.92,658.51,0.30371596]
[1748987612454,1.01744894,658.91,658.51,0.30371596]
[1748987612758,1.01744894,658.9,658.52,0.4831863]
[1748987612957,1.01744894,658.89,658.53,0.30370674]
[1748987613260,1.12398936,659.08,658.53,0.30370674]
[1748987613462,1.01749665,659.07,658.53,0.30370674]
[1748987613657,1.01749665,659.06,658.53,0.30370674]
[1748987613858,1.01749665,659.05,658.53,0.30370674]
[1748987614055,1.12398936,659.08,658.53,0.30370674]
[1748987614056,1.01749665,659.04,658.53,0.30370674]
[1748987614259,1.01749665,659.03,658.53,0.30370674]
[1748987614459,1.01749665,659.02,658.53,0.30370674]
[1748987614663,1.01749665,659.01,658.53,0.30370674]
[1748987614861,1.01749665,659.0,658.53,0.30370674]
[1748987615160,1.01749665,658.99,658.53,0.30370674]
[1748987615461,1.01749665,658.98,658.53,0.30370674]
[1748987615661,1.01749665,658.97,658.53,0.30370674]
[1748987615862,1.01749665,658.96,658.53,0.30370674]
[1748987616063,1.01682971,658.95,658.53,0.30370674]
[1748987616262,1.01682971,658.94,658.53,0.30370674]
[1748987616563,1.01682971,658.93,658.53,0.30370674]
[1748987616764,1.01682971,658.92,658.53,0.30370674]
[1748987617064,1.01682971,658.91,658.53,0.30370674]
[1748987617359,1.01682971,658.9,658.53,0.30370674]
[1748987617563,1.01682971,658.89,658.53,0.30370674]
[1748987617765,1.12394051,659.08,658.53,0.30370674]
[1748987617961,1.0168704,659.07,658.53,0.30370674]
[1748987618161,1.0168704,659.06,658.53,0.30370674]
[1748987618358,1.12394051,659.08,658.53,0.30370674]
[1748987618359,1.0168704,659.05,658.53,0.30370674]
[1748987618560,1.0168704,659.04,658.53,0.30370674]
[1748987618861,1.0168704,659.03,658.53,0.30370674]
[1748987619063,1.0168704,659.02,658.53,0.30370674]
[1748987619365,1.0168704,659.01,658.53,0.30370674]
[1748987619666,1.0168704,659.0,658.53,0.30370674]
[1748987619865,1.49897511,659.19,658.53,0.30370674]
[1748987620059,1.12409714,659.08,658.53,0.30370674]
[1748987620264,1.01697147,659.07,658.53,0.30370674]
[1748987620566,1.01697147,659.06,658.53,0.30370674]
[1748987620761,1.01697147,659.05,658.53,0.30370674]
[1748987621065,1.01697147,659.04,658.53,0.30370674]
[1748987621263,2.2636385,659.29,658.53,0.30370674]
[1748987621264,1.01697147,659.03,658.53,0.30370674]
[1748987621467,1.12409714,659.07,658.53,0.30370674]
[1748987621468,1.01697147,659.02,658.53,0.30370674]
[1748987621666,1.01697147,659.01,658.53,0.30370674]
[1748987621866,1.01697147,659.0,658.53,0.30370674]
[1748987622065,1.01697147,658.99,658.53,0.30370674]
[1748987622266,1.01697147,658.98,658.53,0.30370674]
[1748987622464,1.01697147,658.97,658.53,0.30370674]
[1748987622661,1.01697147,658.96,658.53,0.30370674]
[1748987622863,1.01697147,658.95,658.53,0.30370674]
[1748987623067,1.01697147,658.94,658.53,0.30370674]
[1748987623268,1.01697147,658.93,658.53,0.30370674]
[1748987623567,1.01697147,658.92,658.53,0.30370674]
[1748987623763,1.01697147,658.91,658.53,0.30370674]
[1748987623970,1.01725819,658.9,658.53,0.30370674]
[1748987624169,1.01725819,658.89,658.53,0.30370674]
[1748987624468,1.01725819,658.88,658.53,0.30370674]
[1748987624669,1.01725819,658.87,658.53,0.30370674]
[1748987624869,1.01725819,658.86,658.53,0.30370674]
[1748987625072,1.01733651,658.85,658.53,0.30370674]
[1748987625273,3.75130409,660.08,658.53,0.30370674]
[1748987625274,1.12443188,659.13,658.53,0.30370674]
[1748987625472,1.01738397,659.12,658.53,0.30370674]
[1748987625772,1.01738397,659.11,658.53,0.30370674]
[1748987625967,1.01738397,659.1,658.53,0.30370674]
[1748987626169,1.01738397,659.09,658.53,0.30370674]
[1748987626470,1.01738397,659.08,658.53,0.30370674]
[1748987626669,1.01738397,659.07,658.53,0.30370674]
[1748987626865,1.01738397,659.06,658.53,0.30370674]
[1748987627170,1.01738397,659.05,658.53,0.30370674]
[1748987627365,1.01738397,659.04,658.53,0.30370674]
[1748987627570,1.12443188,659.13,658.53,0.30370674]
[1748987627571,1.01738397,659.03,658.53,0.30370674]
[1748987627871,1.01754422,659.02,658.53,0.30370674]
[1748987628073,1.01754422,659.01,658.53,0.30370674]
[1748987628371,1.01754422,659.0,658.53,0.30370674]
[1748987628571,1.01754422,658.99,658.53,0.30370674]
[1748987628870,1.01754422,658.98,658.53,0.30370674]
[1748987629071,1.01754422,658.97,658.53,0.30370674]
[1748987629272,1.01754422,658.96,658.53,0.30370674]
[1748987629472,1.01754422,658.95,658.53,0.30370674]
[1748987629773,1.01754422,658.94,658.53,0.30370674]
[1748987629966,1.01754422,658.93,658.53,0.30370674]
[1748987630170,1.01754422,658.92,658.53,0.30370674]
[1748987630368,1.01754422,658.91,658.53,0.30370674]
[1748987630569,1.01754422,658.9,658.53,0.30370674]
[1748987630768,1.12461079,659.2,658.53,0.30370674]
[1748987630968,1.01751737,659.19,658.53,0.30370674]
[1748987631169,1.01751737,659.18,658.53,0.30370674]
[1748987631371,1.12461079,659.2,658.53,0.30370674]
[1748987631372,1.01751737,659.17,658.53,0.30370674]
[1748987631571,1.01751737,659.16,658.53,0.30370674]
[1748987631772,1.01751737,659.15,658.53,0.30370674]
[1748987631972,1.01751737,659.14,658.53,0.30370674]
[1748987632172,1.01751737,659.13,658.53,0.30370674]
[1748987632369,1.01751737,659.12,658.53,0.30370674]
[1748987632674,1.01751737,659.11,658.53,0.30370674]
[1748987632974,1.01751737,659.1,658.53,0.30370674]
[1748987633172,1.01751737,659.09,658.53,0.30370674]
[1748987633369,1.01751737,659.08,658.53,0.30370674]
[1748987633568,1.01751737,659.07,658.53,0.30370674]
[1748987633766,1.12461079,659.15,658.53,0.30370674]
[1748987633767,1.01751737,659.06,658.53,0.30370674]
[1748987633971,1.01751737,659.05,658.53,0.30370674]
[1748987634273,1.01751737,659.04,658.53,0.30370674]
[1748987634474,1.01751737,659.03,658.53,0.30370674]
[1748987634668,1.01751737,659.02,658.53,0.30370674]
[1748987634870,1.01751737,659.01,658.53,0.30370674]
[1748987635071,1.01751737,659.0,658.53,0.30370674]
[1748987635271,1.01751737,658.99,658.53,0.30370674]
[1748987635573,1.01751737,658.98,658.53,0.30370674]
[1748987635874,1.01751737,658.97,658.53,0.30370674]
[1748987636074,1.01751737,658.96,658.53,0.30370674]
[1748987636375,1.01751737,658.95,658.53,0.30370674]
[1748987636574,1.01751737,658.94,658.53,0.30370674]
[1748987636776,1.01751737,658.93,658.53,0.30370674]
[1748987636971,1.01751737,658.92,658.53,0.30370674]
[1748987637176,1.01751737,658.91,658.53,0.30370674]
[1748987637366,1.01751737,658.9,658.53,0.30370674]
[1748987637573,1.01751737,658.89,658.53,0.30370674]
[1748987637773,1.01751737,658.88,658.53,0.30370674]
[1748987637974,1.01751737,658.87,658.53,0.30370674]
[1748987638271,1.01751737,658.86,658.53,0.30370674]
[1748987638573,1.01751737,658.85,658.53,0.30370674]
[1748987638776,1.49897511,659.19,658.53,0.30370674]
[1748987638777,1.01751737,658.84,658.53,0.30370674]
[1748987638975,1.01751737,658.83,658.53,0.30370674]
[1748987639275,1.01751737,658.82,658.53,0.30370674]
[1748987639478,1.02360118,658.81,658.53,0.30370674]
[1748987639671,1.02360118,658.8,658.53,0.30370674]
[1748987639877,1.02360118,658.79,658.53,0.30370674]
[1748987640077,1.02360118,658.78,658.53,0.30370674]
[1748987640280,1.02360118,658.77,658.53,0.30370674]
[1748987640474,1.02360118,658.76,658.53,0.30370674]
[1748987640673,1.02360118,658.75,658.53,0.30370674]
[1748987640879,1.12457562,658.99,658.53,0.30370674]
[1748987641079,2.14712515,658.98,658.53,0.30370674]
[1748987641281,1.02254953,658.97,658.53,0.30370674]
[1748987641481,1.02254953,658.96,658.53,0.30370674]
[1748987641674,1.02254953,658.95,658.53,0.30370674]
[1748987641874,1.02261393,658.94,658.53,0.30370674]
[1748987642075,1.02261393,658.93,658.53,0.30370674]
[1748987642279,1.02261393,658.92,658.53,0.30370674]
[1748987642474,1.12458029,658.98,658.53,0.30370674]
[1748987642475,1.02261393,658.91,658.53,0.30370674]
[1748987642678,1.02261393,658.9,658.53,0.30370674]
[1748987642879,1.02261393,658.89,658.53,0.30370674]
[1748987643080,1.02261393,658.88,658.53,0.30370674]
[1748987643382,1.02261393,658.87,658.53,0.30370674]
[1748987643578,1.02261393,658.86,658.53,0.30370674]
[1748987643777,1.02261393,658.85,658.53,0.30370674]
[1748987643981,1.02261393,658.84,658.53,0.30370674]
[1748987644181,1.02261393,658.83,658.53,0.30370674]
[1748987644475,1.12458029,658.97,658.53,0.30370674]
[1748987644476,1.02261393,658.82,658.53,0.30370674]
[1748987644681,1.02261393,658.81,658.53,0.30370674]
[1748987644877,1.02261393,658.8,658.53,0.30370674]
[1748987645080,1.02261393,658.79,658.53,0.30370674]
[1748987645275,1.02261393,658.78,658.53,0.30370674]
[1748987645477,1.12458029,658.97,658.53,0.30370674]
[1748987645478,1.02261393,658.77,658.53,0.30370674]
[1748987645680,1.02261393,658.76,658.53,0.30370674]
[1748987645981,1.02257424,658.75,658.53,0.30370674]
[1748987646184,1.02257424,658.74,658.53,0.30370674]
[1748987646377,1.0226221,658.73,658.53,0.30370674]
[1748987646578,1.02258541,658.72,658.53,0.30370674]
[1748987646878,1.02259567,658.71,658.53,0.30370674]
[1748987647076,1.12467679,658.95,658.53,0.30370674]
[1748987647281,2.1472545,658.94,658.53,0.30370674]
[1748987647481,1.02257771,658.93,658.53,0.30370674]
[1748987647782,1.02257771,658.92,658.53,0.30370674]
[1748987647980,1.02257771,658.91,658.53,0.30370674]
[1748987648181,1.02257771,658.9,658.53,0.30370674]
[1748987648477,1.12467679,658.95,658.53,0.30370674]
[1748987648478,1.02257771,658.89,658.53,0.30370674]
[1748987648681,1.02257771,658.88,658.53,0.30370674]
[1748987648877,1.02257771,658.87,658.53,0.30370674]
[1748987649082,1.02257771,658.86,658.53,0.30370674]
[1748987649279,1.02257771,658.85,658.53,0.30370674]
[1748987649484,1.02257771,658.84,658.53,0.30370674]
[1748987649684,1.02223107,658.83,658.53,0.30370674]
[1748987649880,1.02223107,658.82,658.53,0.30370674]
[1748987650079,1.02223107,658.81,658.53,0.30370674]
[1748987650282,1.02223107,658.8,658.53,0.30370674]
[1748987650486,1.02223107,658.79,658.53,0.30370674]
[1748987650681,1.02223107,658.78,658.53,0.30370674]
[1748987650883,1.02223107,658.77,658.53,0.30370674]
[1748987651082,1.02223107,658.76,658.53,0.30370674]
[1748987651383,1.02223107,658.75,658.53,0.30370674]
[1748987651585,1.02223107,658.74,658.53,0.30370674]
[1748987651782,1.02223107,658.73,658.53,0.30370674]
[1748987651978,3.75130409,659.76,658.53,0.30370674]
[1748987651979,1.02223107,658.72,658.53,0.30370674]
[1748987652182,1.02223107,658.71,658.53,0.30370674]
[1748987652383,1.02223107,658.7,658.53,0.30370674]
[1748987652579,1.02223107,658.69,658.53,0.30370674]
[1748987652782,1.02223107,658.68,658.53,0.30370674]
[1748987653079,1.02223107,658.67,658.53,0.30370674]
[1748987653282,1.02223107,658.66,658.53,0.30370674]
[1748987653483,1.02133851,658.65,658.53,0.30370674]
[1748987653783,1.02106602,658.64,658.53,0.30370674]
[1748987653983,1.02106602,658.63,658.53,0.30370674]
[1748987654179,1.02106602,658.62,658.53,0.30370674]
[1748987654379,1.02106602,658.61,658.53,0.30370674]
[1748987654583,1.49897511,658.94,658.53,0.30370674]
[1748987654584,1.02106602,658.6,658.53,0.30370674]
[1748987654780,1.02106602,658.59,658.53,0.30370674]
[1748987654984,1.12352726,658.83,658.53,0.30370674]
[1748987655182,1.02044921,658.82,658.53,0.30370674]
[1748987655383,1.02044921,658.81,658.53,0.30370674]
[1748987655580,1.02044921,658.8,658.53,0.30370674]
[1748987655780,1.02044921,658.79,658.53,0.30370674]
[1748987655987,1.02044921,658.78,658.53,0.30370674]
[1748987656181,1.02044921,658.77,658.53,0.30370674]
[1748987656485,1.02044921,658.76,658.53,0.30370674]
[1748987656685,1.02044921,658.75,658.53,0.30370674]
[1748987656887,1.02044921,658.74,658.53,0.30370674]
[1748987657088,1.02044921,658.73,658.53,0.30370674]
[1748987657285,1.02003143,658.72,658.53,0.30370674]
[1748987657586,1.02003143,658.71,658.53,0.30370674]
[1748987657781,1.02003143,658.7,658.53,0.30370674]
[1748987657986,1.02003143,658.69,658.53,0.30370674]
[1748987658183,1.02003143,658.68,658.53,0.30370674]
[1748987658382,1.02003143,658.67,658.53,0.30370674]
[1748987658688,1.02003143,658.66,658.53,0.30370674]
[1748987658886,1.02003143,658.65,658.53,0.30370674]
[1748987659087,1.02003143,658.64,658.53,0.30370674]
[1748987659287,1.02003143,658.63,658.53,0.30370674]
[1748987659583,1.12273317,658.94,658.53,0.30370674]
[1748987659784,1.0194182,658.93,658.53,0.30370674]
[1748987659989,1.0194182,658.92,658.53,0.30370674]
[1748987660189,1.0194182,658.91,658.53,0.30370674]
[1748987660391,1.0194182,658.9,658.53,0.30370674]
[1748987660586,1.0194182,658.89,658.53,0.30370674]
[1748987660791,1.0194182,658.88,658.53,0.30370674]
[1748987660990,1.0194182,658.87,658.53,0.30370674]
[1748987661291,1.49897511,659.11,658.53,0.30370674]
[1748987661493,1.12216132,658.95,658.53,0.30370674]
[1748987661788,1.01938453,658.94,658.53,0.30370674]
[1748987661990,1.01938453,658.93,658.53,0.30370674]
[1748987662192,1.01938453,658.92,658.53,0.30370674]
[1748987662391,1.01938453,658.91,658.53,0.30370674]
[1748987662688,1.01938453,658.9,658.53,0.30370674]
[1748987662889,1.01938453,658.89,658.53,0.30370674]
[1748987663093,1.01938453,658.88,658.53,0.30370674]
[1748987663295,1.49897511,659.13,658.53,0.30370674]
[1748987663594,1.121948,658.94,658.53,0.30370674]
[1748987663794,1.01915827,658.93,658.53,0.30370674]
[1748987663995,1.01915827,658.92,658.53,0.30370674]
[1748987664190,1.01915827,658.91,658.53,0.30370674]
[1748987664391,1.01915827,658.9,658.53,0.30370674]
[1748987664594,1.01915827,658.89,658.53,0.30370674]
[1748987664789,1.01915827,658.88,658.53,0.30370674]
[1748987664990,1.01915827,658.87,658.53,0.30370674]
[1748987665189,1.01915827,658.86,658.53,0.30370674]
[1748987665395,1.01915827,658.85,658.53,0.30370674]
[1748987665596,1.01915827,658.84,658.53,0.30370674]
[1748987665895,1.01915827,658.83,658.53,0.30370674]
[1748987666190,1.01915827,658.82,658.53,0.30370674]
[1748987666396,1.01915827,658.81,658.53,0.30370674]
[1748987666589,1.01915827,658.8,658.53,0.30370674]
[1748987666793,1.01915827,658.79,658.53,0.30370674]
[1748987666994,1.01915827,658.78,658.53,0.30370674]
[1748987667195,1.01915827,658.77,658.53,0.30370674]
[1748987667396,1.01915827,658.76,658.53,0.30370674]
[1748987667592,1.01915827,658.75,658.53,0.30370674]
[1748987667795,1.01915827,658.74,658.53,0.30370674]
[1748987667995,1.01915827,658.73,658.53,0.30370674]
[1748987668195,1.01915827,658.72,658.53,0.30370674]
[1748987668396,1.01915827,658.71,658.53,0.30370674]
[1748987668592,1.01915827,658.7,658.53,0.30370674]
[1748987668796,1.01915827,658.69,658.53,0.30370674]
[1748987669097,1.01915827,658.68,658.53,0.30370674]
[1748987669293,1.01836008,658.67,658.53,0.30370674]
[1748987669494,1.01836008,658.66,658.53,0.30370674]
[1748987669700,1.01836008,658.65,658.53,0.30370674]
[1748987669898,1.12130696,658.92,658.53,0.30370674]
[1748987670093,1.01805949,658.91,658.53,0.30370674]
[1748987670297,1.01805949,658.9,658.53,0.30370674]
[1748987670593,1.01805949,658.89,658.53,0.30370674]
[1748987670798,1.01805949,658.88,658.53,0.30370674]
[1748987670998,1.01805949,658.87,658.53,0.30370674]
[1748987671198,1.01805949,658.86,658.53,0.30370674]
[1748987671397,1.01805949,658.85,658.53,0.30370674]
[1748987671598,3.75130409,659.81,658.53,0.30370674]
[1748987671599,1.01805949,658.84,658.53,0.30370674]
[1748987671799,1.01805949,658.83,658.53,0.30370674]
[1748987671999,1.12130696,658.86,658.53,0.30370674]
[1748987672000,1.01805949,658.82,658.53,0.30370674]
[1748987672193,1.01805949,658.81,658.53,0.30370674]
[1748987672397,1.01805949,658.8,658.53,0.30370674]
[1748987672601,1.01805949,658.79,658.53,0.30370674]
[1748987672900,1.01805949,658.78,658.53,0.30370674]
[1748987673096,1.01805949,658.77,658.53,0.30370674]
[1748987673294,1.01805949,658.76,658.53,0.30370674]
[1748987673497,1.01805949,658.75,658.53,0.30370674]
[1748987673694,1.01805949,658.74,658.53,0.30370674]
[1748987673899,1.01805949,658.73,658.53,0.30370674]
[1748987674098,1.01805949,658.72,658.53,0.30370674]
[1748987674398,1.01805949,658.71,658.53,0.30370674]
[1748987674596,1.01805949,658.7,658.53,0.30370674]
[1748987674799,1.01805949,658.69,658.53,0.30370674]
[1748987675099,1.01805949,658.68,658.53,0.30370674]
[1748987675399,1.01805949,658.67,658.53,0.30370674]
[1748987675600,1.01805949,658.66,658.53,0.30370674]
[1748987675899,1.01805949,658.65,658.53,0.30370674]
[1748987676094,1.01805949,658.64,658.53,0.30370674]
[1748987676398,1.01805949,658.63,658.53,0.30370674]
[1748987676598,1.01805949,658.62,658.53,0.30370674]
[1748987676798,1.01805949,658.61,658.53,0.30370674]
[1748987676996,1.12130696,658.85,658.53,0.30370674]
[1748987677194,1.01692342,658.84,658.53,0.30370674]
[1748987677397,1.01692342,658.83,658.53,0.30370674]
[1748987677598,1.01692342,658.82,658.53,0.30370674]
[1748987677795,1.01692342,658.81,658.53,0.30370674]
[1748987677994,1.01692342,658.8,658.53,0.30370674]
[1748987678197,1.01692342,658.79,658.53,0.30370674]
[1748987678494,1.01692342,658.78,658.53,0.30370674]
[1748987678698,1.12119323,658.85,658.53,0.30370674]
[1748987678699,1.01692342,658.77,658.53,0.30370674]
[1748987678898,1.01692342,658.76,658.53,0.30370674]
[1748987679098,1.01692342,658.75,658.53,0.30370674]
[1748987679299,1.01692342,658.74,658.53,0.30370674]
[1748987679500,1.01692342,658.73,658.53,0.30370674]
[1748987679700,1.01692342,658.72,658.53,0.30370674]
[1748987679900,1.01692342,658.71,658.53,0.30370674]
[1748987680100,1.01692342,658.7,658.53,0.30370674]
[1748987680301,1.12119323,658.84,658.53,0.30370674]
[1748987680302,1.01692342,658.69,658.53,0.30370674]
[1748987680498,1.12119323,658.84,658.53,0.30370674]
[1748987680499,1.01692342,658.68,658.53,0.30370674]
[1748987680702,1.01692342,658.67,658.53,0.30370674]
[1748987680897,1.49897511,658.97,658.53,0.30370674]
[1748987681204,1.1211431,658.84,658.53,0.30370674]
[1748987681404,1.1211431,658.82,658.53,0.30370674]
[1748987681605,1.01691197,658.81,658.53,0.30370674]
[1748987681807,1.01691197,658.8,658.53,0.30370674]
[1748987682005,1.01691197,658.79,658.53,0.30370674]
[1748987682201,1.01691197,658.78,658.53,0.30370674]
[1748987682405,1.01691197,658.77,658.53,0.30370674]
[1748987682704,1.01691197,658.76,658.53,0.30370674]
[1748987682905,1.01691197,658.75,658.53,0.30370674]
[1748987683206,1.01691197,658.74,658.53,0.30370674]
[1748987683401,1.01691197,658.73,658.53,0.30370674]
[1748987683706,1.01691197,658.72,658.53,0.30370674]
[1748987684004,1.01691197,658.71,658.53,0.30370674]
[1748987684204,1.01691197,658.7,658.53,0.30370674]
[1748987684405,1.01691197,658.69,658.53,0.30370674]
[1748987684706,1.01691197,658.68,658.53,0.30370674]
[1748987684906,1.01727466,658.67,658.53,0.30370674]
[1748987685207,1.01727466,658.66,658.53,0.30370674]
[1748987685405,1.01727466,658.65,658.53,0.30370674]
[1748987685602,1.01727466,658.64,658.53,0.30370674]
[1748987685806,1.01727466,658.63,658.53,0.30370674]
[1748987686105,1.01727466,658.62,658.53,0.30370674]
[1748987686302,1.01727466,658.61,658.53,0.30370674]
[1748987686605,1.01727466,658.6,658.53,0.30370674]
[1748987686806,1.12115226,658.68,658.53,0.30370674]
[1748987686807,1.01727466,658.59,658.53,0.30370674]
[1748987687006,1.01727466,658.58,658.53,0.30370674]
[1748987687207,1.01727466,658.57,658.53,0.30370674]
[1748987687406,1.01727466,658.56,658.53,0.30370674]
[1748987687607,1.01727466,658.55,658.53,0.30370674]
[1748987687807,1.01727466,658.54,658.53,0.30370674]
[1748987688407,1.01727466,658.54,657.83,0.74753862]
[1748987688608,1.01727466,658.53,657.84,0.30402529]
[1748987688805,1.01727466,658.52,657.84,0.30402529]
[1748987689003,1.01727466,658.51,657.84,0.30402529]
[1748987689207,1.01727466,658.5,657.84,0.30402529]
[1748987689408,1.01727466,658.49,657.84,0.30402529]
[1748987689607,1.01727466,658.48,657.84,0.30402529]
[1748987689910,1.01727466,658.47,657.84,0.30402529]
[1748987690105,1.01727466,658.46,657.84,0.30402529]
[1748987690312,1.12115226,658.64,657.84,0.30402529]
[1748987690313,1.01727466,658.45,657.84,0.30402529]
[1748987690513,1.01727466,658.44,657.84,0.30402529]
[1748987690712,1.01727466,658.43,657.84,0.30402529]
[1748987690908,1.01727466,658.42,657.84,0.30402529]
[1748987691115,1.01727466,658.41,657.84,0.30402529]
[1748987691316,1.01727466,658.4,657.84,0.30402529]
[1748987691513,1.12115226,658.64,657.84,0.30402529]
[1748987691719,1.01706231,658.63,657.84,0.30402529]
[1748987691916,1.01706231,658.62,657.84,0.30402529]
[1748987692118,1.01706231,658.61,657.84,0.30402529]
[1748987692317,1.01706231,658.6,657.84,0.30402529]